bitfinex/quotes_BTCUSD_20250903
["timestamp","ask_amount","ask_price","bid_price","bid_amount"]
[1756886431593,2.02061569,111280.0,111270.0,0.18496]
[1756886431992,2.02061569,111280.0,111270.0,0.18295]
[1756886432174,2.02061569,111280.0,111270.0,0.18]
[1756886432965,1.87069569,111280.0,111270.0,0.18201]
[1756886433338,1.58616873,111280.0,111270.0,0.18496]
[1756886433742,1.56193412,111280.0,111270.0,0.18496]
[1756886433949,1.8798979,111280.0,111270.0,0.18496]
[1756886434767,1.8298979,111280.0,111270.0,0.18496]
[1756886434972,1.97181389,111280.0,111270.0,0.18496]
[1756886435887,1.99642108,111280.0,111270.0,0.18496]
[1756886436295,2.02065569,111280.0,111270.0,0.18496]
[1756886436513,1.99642108,111280.0,111270.0,0.18496]
[1756886437361,2.02065569,111280.0,111270.0,0.18496]
[1756886437786,1.87069569,111280.0,111270.0,0.18496]
[1756886437984,2.01871569,111280.0,111270.0,0.18496]
[1756886438223,1.33620873,111280.0,111270.0,0.18496]
[1756886438429,1.31197412,111280.0,111270.0,0.18496]
[1756886438640,1.45566629,111280.0,111270.0,0.18496]
[1756886438818,1.30566629,111280.0,111270.0,0.18496]
[1756886439050,1.45570629,111280.0,111270.0,0.18496]
[1756886439237,1.11570629,111280.0,111270.0,0.18496]
[1756886439700,1.45570629,111280.0,111270.0,0.18496]
[1756886440218,1.30566629,111280.0,111270.0,0.18496]
[1756886440441,1.45570629,111280.0,111270.0,0.18496]
[1756886441120,1.4363186,111280.0,111270.0,0.18496]
[1756886441756,1.4279115,111280.0,111270.0,0.18496]
[1756886441972,1.43633986,111280.0,111270.0,0.18496]
[1756886442413,0.6503723,111280.0,111270.0,0.20589882]
[1756886442639,1.43633986,111280.0,111270.0,0.20589882]
[1756886443192,1.43433986,111280.0,111270.0,0.20589882]
[1756886443383,1.28429986,111280.0,111270.0,0.20589882]
[1756886443963,1.43333986,111280.0,111270.0,0.20589882]
[1756886444685,1.43533986,111280.0,111270.0,0.20589882]
[1756886445234,1.01699173,111280.0,111270.0,0.56066178]
[1756886445458,1.18695551,111280.0,111270.0,0.38087882]
[1756886446285,0.86899173,111280.0,111270.0,0.38087882]
[1756886446490,0.86699173,111280.0,111270.0,0.38087882]
[1756886447068,0.86499173,111280.0,111270.0,0.38087882]
[1756886447583,0.86599173,111280.0,111270.0,0.38087882]
[1756886448233,0.86599173,111280.0,111270.0,0.56062178]
[1756886448426,0.68626492,111280.0,111270.0,0.56062178]
[1756886448679,0.36830114,111280.0,111270.0,0.56062178]
[1756886448882,0.36830114,111280.0,111270.0,0.87858556]
[1756886449141,0.36930114,111280.0,111270.0,0.87858556]
[1756886449728,0.02930114,111280.0,111270.0,0.87858556]
[1756886450650,0.02830114,111280.0,111270.0,0.87858556]
[1756886450824,0.02930114,111280.0,111270.0,0.87858556]
[1756886451348,0.02830114,111280.0,111270.0,0.87858556]
[1756886452314,0.02830114,111280.0,111270.0,0.56062178]
[1756886452520,0.02730114,111280.0,111270.0,0.56058178]
[1756886452722,0.02730114,111280.0,111270.0,0.87854556]
[1756886452934,0.0002842,111280.0,111270.0,0.87854556]
[1756886453349,0.0002842,111280.0,111270.0,0.97046155]
[1756886453770,0.0002842,111280.0,111270.0,0.82050155]
[1756886453979,0.0002842,111280.0,111270.0,0.97050155]
[1756886455225,0.0002842,111280.0,111270.0,0.97150155]
[1756886456566,0.0002842,111280.0,111270.0,0.82150155]
[1756886456765,0.0002842,111280.0,111270.0,0.97150155]
[1756886456969,0.0002842,111280.0,111270.0,0.97350155]
[1756886461224,0.0002842,111280.0,111270.0,1.31847859]
[1756886461429,0.0002842,111280.0,111270.0,1.00051481]
[1756886463339,0.0002842,111280.0,111270.0,1.31847859]
[1756886463538,0.0002842,111280.0,111270.0,1.31839859]
[1756886464777,0.0002842,111280.0,111270.0,1.16847859]
[1756886465008,0.0002842,111280.0,111270.0,1.31835859]
[1756886466724,0.0002842,111280.0,111270.0,1.16847859]
[1756886466914,0.0002842,111280.0,111270.0,1.31835859]
[1756886467052,0.0002842,111280.0,111270.0,1.16847859]
[1756886467252,0.0002842,111280.0,111270.0,1.31835859]
[1756886468283,0.0002842,111280.0,111270.0,1.16847859]
[1756886468505,0.0002842,111280.0,111270.0,1.31863859]
[1756886468746,0.0002842,111280.0,111270.0,1.63660237]
[1756886468973,0.0002842,111280.0,111270.0,1.31663859]
[1756886469206,0.0002842,111280.0,111270.0,2.37460237]
[1756886469437,0.0002842,111280.0,111270.0,2.05663859]
[1756886469633,0.0002842,111280.0,111270.0,2.22644237]
[1756886469871,0.0002842,111280.0,111270.0,2.37360237]
[1756886470078,0.0002842,111280.0,111270.0,2.37560237]
[1756886470289,0.0012842,111280.0,111270.0,2.38160237]
[1756886470465,0.0012842,111280.0,111270.0,2.44588727]
[1756886470672,0.0012842,111280.0,111270.0,2.12592349]
[1756886470876,0.10075529,111320.0,111310.0,0.20061719]
[1756886471084,0.10089559,111320.0,111310.0,0.52060097]
[1756886471283,0.07388661,111320.0,111310.0,0.67389097]
[1756886471489,0.07388661,111320.0,111310.0,0.35592719]
[1756886471697,0.07586661,111320.0,111310.0,0.35073719]
[1756886471898,0.0023203,111320.0,111310.0,0.35073719]
[1756886472102,0.49994631,111320.0,111310.0,0.20061719]
[1756886472316,0.32028408,111320.0,111310.0,0.35073719]
[1756886472523,0.33044575,111320.0,111310.0,0.35073719]
[1756886473535,0.51010798,111320.0,111310.0,0.20061719]
[1756886473670,0.51010798,111320.0,111310.0,0.35073719]
[1756886474078,0.1921442,111320.0,111310.0,0.35069719]
[1756886474297,0.51010798,111320.0,111310.0,0.35069719]
[1756886474658,0.33044575,111320.0,111310.0,0.20061719]
[1756886474874,0.33044575,111320.0,111310.0,0.35069719]
[1756886476190,0.33884552,111320.0,111310.0,0.35069719]
[1756886476756,0.51850775,111320.0,111310.0,0.35065719]
[1756886476958,0.51850775,111320.0,111310.0,0.17097882]
[1756886477782,0.51850775,111320.0,111310.0,0.20061719]
[1756886478016,0.51850775,111320.0,111310.0,0.35065719]
[1756886478213,0.5185097,111320.0,111310.0,0.35065719]
[1756886479603,0.5185097,111320.0,111310.0,0.02093882]
[1756886479774,0.5185097,111320.0,111310.0,0.17093882]
[1756886479970,0.5185097,111320.0,111310.0,0.35061719]
[1756886480245,0.5185097,111320.0,111310.0,0.20061719]
[1756886480419,0.5185097,111320.0,111310.0,0.35061719]
[1756886480630,0.5185097,111320.0,111310.0,0.17089882]
[1756886480831,0.20054592,111320.0,111310.0,0.35057719]
[1756886481025,0.5185097,111320.0,111310.0,0.35057719]
[1756886481712,0.20054592,111320.0,111310.0,0.35057719]
[1756886481920,0.5185097,111320.0,111310.0,0.35057719]
[1756886482380,0.20054592,111320.0,111310.0,0.35057719]
[1756886482797,0.5185097,111320.0,111310.0,0.02093882]
[1756886482999,0.83874348,111320.0,111310.0,0.17093882]
[1756886483639,0.65319335,111320.0,111310.0,0.17093882]
[1756886485445,0.22982417,111320.0,111310.0,0.17093882]
[1756886485662,0.65319335,111320.0,111310.0,0.17093882]
[1756886485872,0.22755417,111320.0,111310.0,0.17093882]
[1756886486226,0.65092335,111320.0,111310.0,0.17093882]
[1756886490072,0.22755417,111320.0,111310.0,0.17093882]
[1756886490323,0.65093475,111320.0,111310.0,0.17093882]
[1756886491111,0.64252163,111320.0,111310.0,0.17093882]
[1756886495307,0.21915245,111320.0,111310.0,0.17093882]
[1756886495732,0.21915245,111320.0,111310.0,0.35061719]
[1756886495936,0.03949022,111320.0,111310.0,0.35580719]
[1756886496133,0.03751022,111320.0,111310.0,0.35580719]
[1756886496335,0.02834855,111320.0,111310.0,0.77917637]
[1756886496813,0.03747623,111320.0,111310.0,0.77917637]
[1756886497011,0.02834855,111320.0,111310.0,0.77917637]
[1756886497216,0.0013403,111320.0,111310.0,0.77917637]
[1756886497479,0.0013403,111320.0,111310.0,0.35580719]
[1756886499019,0.01026963,111320.0,111310.0,0.35580719]
[1756886499229,0.00926963,111320.0,111310.0,0.35780719]
[1756886499860,0.00926963,111320.0,111310.0,0.36080719]
[1756886500675,0.0003403,111320.0,111310.0,0.36080719]
[1756886501740,0.0003403,111320.0,111310.0,0.78417637]
[1756886502781,0.0003403,111320.0,111310.0,0.36080719]
[1756886502992,0.0003403,111320.0,111310.0,0.78417637]
[1756886503776,0.0003403,111320.0,111310.0,0.87609236]
[1756886504397,0.0003403,111320.0,111310.0,0.89957236]
[1756886505152,1e-08,111320.0,111310.0,0.47620318]
[1756886505372,0.42356918,111360.0,111340.0,0.20055499]
[1756886505373,0.0002,111360.0,111340.0,0.20055499]
[1756886505608,0.42370945,111360.0,111350.0,0.08932882]
[1756886505837,0.42568945,111360.0,111350.0,0.23441882]
[1756886506044,0.00232027,111360.0,111350.0,0.41403265]
[1756886506262,0.42370945,111360.0,111350.0,0.41910265]
[1756886506484,0.00034027,111360.0,111350.0,0.41910265]
[1756886506901,0.00034027,111360.0,111350.0,0.26894265]
[1756886507101,0.00034027,111360.0,111350.0,0.41922265]
[1756886507474,0.00034027,111360.0,111350.0,0.41918265]
[1756886507677,0.42568945,111360.0,111350.0,0.41918265]
[1756886507833,0.42568945,111360.0,111350.0,0.08932882]
[1756886508034,0.42568945,111360.0,111350.0,0.41918265]
[1756886508248,0.60528715,111360.0,111350.0,0.41918265]
[1756886508470,0.60528715,111360.0,111350.0,0.41611265]
[1756886508675,0.60528715,111360.0,111350.0,0.23449882]
[1756886509305,0.00232027,111360.0,111350.0,0.42018265]
[1756886509506,0.42568945,111360.0,111350.0,0.42018265]
[1756886510116,0.00034027,111360.0,111350.0,0.42018265]
[1756886510296,0.42370945,111360.0,111350.0,0.42018265]
[1756886511351,0.60528715,111360.0,111350.0,0.42218265]
[1756886512001,0.18191797,111360.0,111350.0,0.42218265]
[1756886512222,0.60330715,111360.0,111350.0,0.42218265]
[1756886512646,0.60528715,111360.0,111350.0,0.42218265]
[1756886513511,0.42370945,111360.0,111350.0,0.42218265]
[1756886516273,0.00034027,111360.0,111350.0,0.42218265]
[1756886516522,0.42370945,111360.0,111350.0,0.42218265]
[1756886516921,0.42568945,111360.0,111350.0,0.42218265]
[1756886518219,0.42370945,111360.0,111350.0,0.42218265]
[1756886519733,0.00034027,111360.0,111350.0,0.42218265]
[1756886522834,0.42370945,111360.0,111350.0,0.42218265]
[1756886523046,0.42370945,111360.0,111350.0,0.42202265]
[1756886523277,0.42366945,111360.0,111350.0,0.42202265]
[1756886523989,1.03088633,111360.0,111350.0,0.23733882]
[1756886524443,0.63224483,111360.0,111350.0,0.23733882]
[1756886524658,0.63224483,111360.0,111350.0,0.41695265]
[1756886525130,0.45264713,111360.0,111350.0,0.42202265]
[1756886525380,0.45066713,111360.0,111350.0,0.42202265]
[1756886526719,0.42366945,111360.0,111350.0,0.42202265]
[1756886527966,0.60524715,111360.0,111350.0,0.26994265]
[1756886528177,0.60524715,111360.0,111350.0,0.42010265]
[1756886528398,0.60524715,111360.0,111350.0,0.41699265]
[1756886529053,0.00228027,111360.0,111350.0,0.42205265]
[1756886529250,0.60524715,111360.0,111350.0,0.42205265]
[1756886530864,0.60524715,111360.0,111350.0,0.26687265]
[1756886531075,0.60524715,111360.0,111350.0,0.41699265]
[1756886531322,0.18187797,111360.0,111350.0,0.41699265]
[1756886531512,0.60524715,111360.0,111350.0,0.41699265]
[1756886531947,1.37088633,111360.0,111350.0,0.15312]
[1756886532164,1.54800578,111360.0,111350.0,0.17401882]
[1756886532379,1.54800578,111360.0,111350.0,0.003]
[1756886532622,1.54800578,111360.0,111350.0,0.15308]
[1756886532830,1.54800578,111360.0,111350.0,0.17401882]
[1756886533912,1.63992177,111360.0,111350.0,0.02393882]
[1756886534566,1.63992177,111360.0,111350.0,0.003]
[1756886534790,1.648338,111360.0,111350.0,0.003]
[1756886535011,1.64833838,111360.0,111350.0,0.003]
[1756886535247,2.18505773,111360.0,111350.0,0.003]
[1756886535472,2.23505773,111360.0,111350.0,0.003]
[1756886535680,2.25925902,111360.0,111350.0,0.003]
[1756886536121,1.02640059,111320.0,111310.0,0.17310631]
[1756886536339,1.36838059,111320.0,111310.0,0.10978631]
[1756886536967,1.39538889,111320.0,111310.0,0.13072513]
[1756886537176,0.97201971,111320.0,111310.0,0.05928882]
[1756886537347,0.97201971,111320.0,111310.0,0.06223882]
[1756886537548,0.97201971,111320.0,111310.0,0.06323882]
[1756886537749,0.97003971,111320.0,111310.0,0.06323882]
[1756886538364,0.0270083,111320.0,111310.0,0.24516316]
[1756886538570,0.0270083,111320.0,111310.0,0.24291719]
[1756886538763,0.45037748,111320.0,111310.0,0.24291719]
[1756886539460,0.63003971,111320.0,111310.0,0.24291719]
[1756886539686,0.63103971,111320.0,111310.0,0.24291719]
[1756886539859,0.45137748,111320.0,111310.0,0.24291719]
[1756886541155,0.63103971,111320.0,111310.0,0.06323882]
[1756886541369,0.63103971,111320.0,111310.0,0.24291719]
[1756886542434,0.6398676,111320.0,111310.0,0.20667719]
[1756886542642,0.6398676,111320.0,111310.0,0.35695719]
[1756886542959,0.63103971,111320.0,111310.0,0.35695719]
[1756886544155,0.45137748,111320.0,111310.0,0.35695719]
[1756886544363,0.42436918,111320.0,111310.0,0.35695719]
[1756886545561,0.63594502,111320.0,111310.0,0.35695719]
[1756886547913,0.81560725,111320.0,111310.0,0.35695719]
[1756886548628,0.18066223,111320.0,111310.0,0.35695719]
[1756886548859,0.81560725,111320.0,111310.0,0.20667719]
[1756886549081,0.81560725,111320.0,111310.0,0.35687719]
[1756886549424,0.81560725,111320.0,111310.0,0.20667719]
[1756886549568,0.81560725,111320.0,111310.0,0.35683719]
[1756886553100,0.81758725,111320.0,111310.0,0.02193882]
[1756886553267,0.81985725,111320.0,111310.0,0.17209882]
[1756886553500,0.81985725,111320.0,111310.0,0.02193882]
[1756886553705,0.81985725,111320.0,111310.0,0.17209882]
[1756886553903,0.81758725,111320.0,111310.0,0.17205882]
[1756886554113,0.81758725,111320.0,111310.0,0.17711882]
[1756886554339,0.81758725,111320.0,111310.0,0.17500882]
[1756886554547,0.81758725,111320.0,111310.0,0.02193882]
[1756886554735,0.81758725,111320.0,111310.0,0.17205882]
[1756886555092,0.81758725,111320.0,111310.0,0.17500882]
[1756886555302,0.81758725,111320.0,111310.0,0.17205882]
[1756886555744,0.81758725,111320.0,111310.0,0.35679719]
[1756886556364,0.81758725,111320.0,111310.0,0.17711882]
[1756886556797,0.81758725,111320.0,111310.0,0.35679719]
[1756886558092,0.81758725,111320.0,111310.0,0.17711882]
[1756886558304,0.81758725,111320.0,111310.0,0.17205882]
[1756886558514,0.81758725,111320.0,111310.0,0.35173719]
[1756886559138,0.81758725,111320.0,111310.0,0.35481719]
[1756886559376,0.81758725,111320.0,111310.0,0.35694719]
[1756886559937,0.00298,111320.0,111310.0,0.35694719]
[1756886560163,0.81758725,111320.0,111310.0,0.35694719]
[1756886560616,0.81758725,111320.0,111310.0,0.35481719]
[1756886560831,0.81758725,111320.0,111310.0,0.35694719]
[1756886561268,0.81758725,111320.0,111310.0,0.35481719]
[1756886561899,0.81758725,111320.0,111310.0,0.35386719]
[1756886562090,0.81758725,111320.0,111310.0,0.35694719]
[1756886564769,0.63594502,111320.0,111310.0,0.35694719]
[1756886564977,0.001,111320.0,111310.0,0.35694719]
[1756886565484,0.31847251,111320.0,111310.0,0.35694719]
[1756886567277,0.001,111320.0,111310.0,0.76633569]
[1756886567481,0.001,111320.0,111310.0,0.79126569]
[1756886567688,0.001,111320.0,111310.0,0.85533]
[1756886568588,0.001,111320.0,111310.0,0.53785749]
[1756886568788,0.001,111320.0,111310.0,0.85533]
[1756886570806,0.001,111320.0,111310.0,0.70521]
[1756886571013,0.001,111320.0,111310.0,0.85525]
[1756886572281,0.001,111320.0,111310.0,0.79118569]
[1756886573749,0.001,111320.0,111310.0,0.85525]
[1756886574576,0.001,111320.0,111310.0,1.17272251]
[1756886574986,0.001,111320.0,111310.0,1.17264251]
[1756886575185,0.001,111320.0,111310.0,0.85517]
[1756886575392,0.001,111320.0,111310.0,1.17264251]
[1756886576405,0.001,111320.0,111310.0,1.1085782]
[1756886577620,0.001,111320.0,111310.0,1.5085782]
[1756886578240,0.001,111320.0,111310.0,1.3586182]
[1756886578417,0.001,111320.0,111310.0,1.4836082]
[1756886578645,0.001,111320.0,111310.0,1.16613569]
[1756886579762,0.001,111320.0,111310.0,1.01621569]
[1756886579999,0.001,111320.0,111310.0,1.16617569]
[1756886580227,0.001,111320.0,111310.0,1.16613569]
[1756886580456,0.001,111320.0,111310.0,1.01621569]
[1756886580638,0.001,111320.0,111310.0,1.16613569]
[1756886582947,0.001,111320.0,111310.0,0.84866318]
[1756886583187,0.001,111320.0,111310.0,0.61621569]
[1756886583448,0.00298,111320.0,111310.0,0.76096569]
[1756886583654,0.00298,111320.0,111310.0,0.27259436]
[1756886583864,0.00298,111320.0,111310.0,0.44353318]
[1756886584284,0.00298,111320.0,111310.0,0.76100569]
[1756886584501,0.00298,111320.0,111310.0,0.44353318]
[1756886587011,0.00298,111320.0,111310.0,0.76100569]
[1756886588058,0.32045251,111320.0,111310.0,0.20161719]
[1756886588255,0.32045251,111320.0,111310.0,0.35157719]
[1756886588565,0.32045251,111320.0,111310.0,0.26493719]
[1756886588785,0.32045251,111320.0,111310.0,0.41489719]
[1756886589196,0.50238474,111320.0,111310.0,0.26493719]
[1756886589411,0.50238474,111320.0,111310.0,0.41517719]
[1756886589412,0.18491223,111320.0,111310.0,0.41517719]
[1756886589617,0.50238474,111320.0,111310.0,0.41517719]
[1756886590058,0.00298,111320.0,111310.0,0.41517719]
[1756886590259,0.32045251,111320.0,111310.0,0.41517719]
[1756886592116,0.00298,111320.0,111310.0,0.42047719]
[1756886595541,0.32045251,111320.0,111310.0,0.42047719]
[1756886596175,0.00298,111320.0,111310.0,0.42047719]
[1756886597445,0.001,111320.0,111310.0,0.42047719]
[1756886600675,0.001,111320.0,111310.0,0.82986569]
[1756886603509,0.001,111320.0,111310.0,0.51291318]
[1756886603750,0.001,111320.0,111310.0,0.83038569]
[1756886604255,0.001,111320.0,111310.0,0.36215318]
[1756886604499,0.001,111320.0,111310.0,0.83038569]
[1756886605629,0.001,111320.0,111310.0,0.51291318]
[1756886607204,0.001,111320.0,111310.0,0.51299318]
[1756886618525,0.001,111320.0,111310.0,0.93619189]
[1756886622798,0.001,111320.0,111310.0,1.0002562]
[1756886623045,0.001,111320.0,111310.0,0.57705749]
[1756886623253,0.001,111320.0,111310.0,1.0002562]
[1756886625990,0.001,111320.0,111310.0,0.93619189]
[1756886626159,0.001,111320.0,111310.0,1.38111643]
[1756886626355,0.00022129,111320.0,111310.0,1.38111643]
[1756886626595,0.00022129,111320.0,111310.0,1.40811582]
[1756886627335,0.00022129,111320.0,111310.0,0.98491711]
[1756886627512,0.03613878,111360.0,111350.0,0.17961383]
[1756886627713,0.03822905,111360.0,111350.0,0.332939]
[1756886627918,0.03822905,111360.0,111350.0,0.17961383]
[1756886628138,0.03822905,111360.0,111350.0,0.332939]
[1756886628346,0.03822905,111360.0,111350.0,0.33069383]
[1756886628773,0.03822905,111360.0,111350.0,0.33269383]
[1756886629230,0.04049905,111360.0,111350.0,0.18161383]
[1756886629431,0.04049905,111360.0,111350.0,0.33365383]
[1756886630195,0.46369776,111360.0,111350.0,0.18261383]
[1756886630382,0.46369776,111360.0,111350.0,0.33365383]
[1756886630590,0.46369776,111360.0,111350.0,0.33369383]
[1756886631758,0.46369776,111360.0,111350.0,0.33365383]
[1756886633091,0.46369776,111360.0,111350.0,0.18261383]
[1756886633533,0.46369776,111360.0,111350.0,0.33361383]
[1756886634932,0.04049905,111360.0,111350.0,0.33361383]
[1756886635134,0.46369776,111360.0,111350.0,0.33361383]
[1756886635762,0.64329546,111360.0,111350.0,0.33361383]
[1756886635958,0.21522384,111360.0,111350.0,0.33361383]
[1756886636192,0.64069255,111360.0,111350.0,0.33361383]
[1756886637283,0.21522384,111360.0,111350.0,0.33361383]
[1756886637490,0.63842255,111360.0,111350.0,0.33361383]
[1756886637902,0.21749384,111360.0,111350.0,0.33361383]
[1756886638127,0.64069255,111360.0,111350.0,0.33361383]
[1756886638334,0.64069255,111360.0,111350.0,0.33353383]
[1756886639104,0.21749384,111360.0,111350.0,0.33353383]
[1756886639311,0.64069255,111360.0,111350.0,0.33353383]
[1756886639749,0.64069255,111360.0,111350.0,0.18261383]
[1756886639957,0.63842255,111360.0,111350.0,0.33349383]
[1756886640552,0.45882485,111360.0,111350.0,0.18472383]
[1756886640761,0.45882485,111360.0,111350.0,0.33880383]
[1756886641160,0.45882485,111360.0,111350.0,0.33349383]
[1756886641789,0.03367614,111360.0,111350.0,0.33556383]
[1756886641996,0.03367614,111360.0,111350.0,0.33876383]
[1756886642204,0.02713966,111360.0,111350.0,0.35970265]
[1756886642839,0.00209027,111360.0,111350.0,0.35451265]
[1756886643054,0.19079047,111360.0,111350.0,0.20355265]
[1756886643262,0.61398918,111360.0,111350.0,0.35451265]
[1756886643471,0.00209027,111360.0,111350.0,0.35982265]
[1756886643682,0.42528898,111360.0,111350.0,0.20355265]
[1756886643886,0.60488668,111360.0,111350.0,0.35451265]
[1756886644544,0.42528898,111360.0,111350.0,0.35451265]
[1756886644752,0.61402613,111360.0,111350.0,0.35451265]
[1756886645172,0.19082742,111360.0,111350.0,0.35451265]
[1756886645423,0.64102338,111360.0,111350.0,0.35451265]
[1756886646063,0.46142568,111360.0,111350.0,0.35451265]
[1756886647454,0.46142568,111360.0,111350.0,0.20355265]
[1756886647653,0.46369568,111360.0,111350.0,0.35447265]
[1756886647879,0.46142568,111360.0,111350.0,0.20355265]
[1756886648234,1.64928808,111360.0,111350.0,0.003]
[1756886649496,1.49840808,111360.0,111350.0,0.003]
[1756886651228,1.49840808,111360.0,111350.0,0.002]
[1756886651644,0.51961383,111350.0,111340.0,0.17181882]
[1756886651885,0.94281254,111350.0,111340.0,0.17181882]
[1756886652091,0.94477254,111350.0,111340.0,0.17181882]
[1756886652293,0.97177433,111350.0,111340.0,0.17181882]
[1756886652846,0.97404433,111350.0,111340.0,0.02093882]
[1756886653054,0.70172562,111350.0,111340.0,0.02093882]
[1756886653247,1.12492433,111350.0,111340.0,0.02093882]
[1756886654062,1.12265433,111350.0,111340.0,0.02193882]
[1756886655332,0.70172562,111350.0,111340.0,0.02193882]
[1756886655547,1.12492433,111350.0,111340.0,0.02193882]
[1756886656318,0.54857562,111350.0,111340.0,0.02193882]
[1756886656495,0.98547562,111350.0,111340.0,0.02193882]
[1756886656703,1.40867433,111350.0,111340.0,0.02193882]
[1756886657261,1.41094433,111350.0,111340.0,0.02193882]
[1756886657462,1.40867433,111350.0,111340.0,0.02193882]
[1756886657992,1.41094433,111350.0,111340.0,0.02193882]
[1756886662084,1.40867433,111350.0,111340.0,0.02193882]
[1756886664151,1.55947433,111350.0,111340.0,0.02193882]
[1756886664373,1.40867433,111350.0,111340.0,0.02193882]
[1756886665681,1.6202409,111350.0,111340.0,0.02193882]
[1756886666347,1.7710009,111350.0,111340.0,0.02193882]
[1756886668610,1.77089313,111350.0,111340.0,0.02193882]
[1756886674905,1.62013313,111350.0,111340.0,0.02193882]
[1756886677072,1.62013313,111350.0,111340.0,0.02498882]
[1756886677214,1.62013313,111350.0,111340.0,0.02700882]
[1756886678267,1.30275049,111350.0,111340.0,0.02700882]
[1756886678630,1.30079049,111350.0,111340.0,0.02700882]
[1756886679785,0.98340785,111350.0,111340.0,0.02700882]
[1756886680005,1.30079049,111350.0,111340.0,0.02700882]
[1756886681975,0.98340785,111350.0,111340.0,0.02700882]
[1756886682184,1.30079049,111350.0,111340.0,0.02700882]
[1756886683010,0.98340785,111350.0,111340.0,0.02700882]
[1756886683218,1.30079049,111350.0,111340.0,0.02700882]
[1756886685940,1.30277049,111350.0,111340.0,0.02700882]
[1756886686366,0.98538785,111350.0,111340.0,0.02700882]
[1756886686562,1.30277049,111350.0,111340.0,0.02700882]
[1756886688429,1.30277049,111350.0,111340.0,0.02193882]
[1756886688635,1.30277049,111350.0,111340.0,0.02506882]
[1756886688862,1.30277049,111350.0,111340.0,0.02711882]
[1756886693355,1.30277049,111350.0,111340.0,0.20674878]
[1756886694157,0.80390179,111350.0,111340.0,0.20674878]
[1756886694328,0.7769,111350.0,111340.0,0.20674878]
[1756886694522,0.4369,111350.0,111340.0,0.20674878]
[1756886698226,0.75428264,111350.0,111340.0,0.20674878]
[1756886699305,0.75428264,111350.0,111340.0,0.35706878]
[1756886699517,0.75428264,111350.0,111340.0,0.20674878]
[1756886699727,0.75428264,111350.0,111340.0,0.35710878]
[1756886700383,0.75428264,111350.0,111340.0,0.20674878]
[1756886700600,0.75428264,111350.0,111340.0,0.35710878]
[1756886701763,0.4369,111350.0,111340.0,0.35710878]
[1756886701972,0.4369,111350.0,111340.0,0.42042878]
[1756886704416,0.75428264,111350.0,111340.0,0.42042878]
[1756886705681,0.75428264,111350.0,111340.0,0.27006878]
[1756886705885,0.75428264,111350.0,111340.0,0.42050878]
[1756886706039,0.75428264,111350.0,111340.0,0.27006878]
[1756886706251,0.75428264,111350.0,111340.0,0.42054878]
[1756886707916,0.75428264,111350.0,111340.0,0.27006878]
[1756886708157,0.75428264,111350.0,111340.0,0.42054878]
[1756886710271,0.75428264,111350.0,111340.0,0.27006878]
[1756886710473,0.75626264,111350.0,111340.0,0.41536878]
[1756886710903,0.75626264,111350.0,111340.0,0.26788878]
[1756886711104,0.75626264,111350.0,111340.0,0.41836878]
[1756886711319,0.75626264,111350.0,111340.0,0.42049878]
[1756886713334,0.75626264,111350.0,111340.0,0.08525882]
[1756886713335,1.25325911,111350.0,111340.0,0.08525882]
[1756886713550,1.59552911,111350.0,111340.0,0.23569882]
[1756886713772,1.74596911,111350.0,111340.0,0.02193882]
[1756886714410,1.77297107,111350.0,111340.0,0.02193882]
[1756886715809,0.98549579,111350.0,111340.0,0.02193882]
[1756886716006,1.30287843,111350.0,111340.0,0.02193882]
[1756886717082,1.45331843,111350.0,111340.0,0.02193882]
[1756886717285,1.45558843,111350.0,111340.0,0.02193882]
[1756886717706,1.77297107,111350.0,111340.0,0.02193882]
[1756886718118,1.77070107,111350.0,111340.0,0.02193882]
[1756886718690,1.77297107,111350.0,111340.0,0.02193882]
[1756886719964,1.86488706,111350.0,111340.0,0.02193882]
[1756886721713,1.86488706,111350.0,111340.0,0.001]
[1756886723464,0.46390196,111350.0,111340.0,0.52408142]
[1756886723674,0.4369,111350.0,111340.0,0.52408142]
[1756886725168,0.4369,111350.0,111340.0,0.95700005]
[1756886725398,0.00014027,111360.0,111350.0,0.17961383]
[1756886725578,0.00014027,111360.0,111350.0,0.73390046]
[1756886725735,0.00014027,111360.0,111350.0,0.73678529]
[1756886726528,0.00114027,111360.0,111350.0,0.73678529]
[1756886727568,0.00114027,111360.0,111350.0,0.84225949]
[1756886728211,0.00214027,111360.0,111350.0,0.84225949]
[1756886729119,0.00114027,111360.0,111350.0,0.84225949]
[1756886729330,0.00014027,111360.0,111350.0,0.84225949]
[1756886729649,0.00014027,111360.0,111350.0,0.84325949]
[1756886730366,0.00014027,111360.0,111350.0,0.84425949]
[1756886731709,0.00014027,111360.0,111350.0,0.93517548]
[1756886732121,0.00014027,111360.0,111350.0,0.93717548]
[1756886732329,0.00014027,111360.0,111350.0,0.96416886]
[1756886732682,0.00014027,111360.0,111350.0,0.98778886]
[1756886735380,0.00014027,111360.0,111350.0,0.83738886]
[1756886735583,0.00014027,111360.0,111350.0,0.98770886]
[1756886737885,0.00014027,111360.0,111350.0,1.38770886]
[1756886743955,0.00014027,111360.0,111350.0,1.23738886]
[1756886744094,0.00014027,111360.0,111350.0,1.38762886]
[1756886744729,0.00014027,111360.0,111350.0,1.23738886]
[1756886744960,0.00014027,111360.0,111350.0,1.38758886]
[1756886750832,0.00014027,111360.0,111350.0,1.72758886]
[1756886751060,0.00014027,111360.0,111350.0,1.791565]
[1756886753440,0.00014027,111360.0,111350.0,2.21442184]
[1756886754099,0.00014027,111360.0,111350.0,2.21434184]
[1756886754306,0.00014027,111360.0,111350.0,2.1503657]
[1756886754527,0.00014027,111360.0,111350.0,2.21417511]
[1756886754953,0.00014027,111360.0,111350.0,2.21217511]
[1756886755139,8e-05,111380.0,111370.0,0.20042044]
[1756886755374,0.00012674,111380.0,111370.0,0.86531327]
[1756886755602,0.00012674,111380.0,111370.0,0.87049327]
[1756886756063,0.00012674,111380.0,111370.0,0.8974801]
[1756886756495,0.00012674,111380.0,111370.0,0.47462326]
[1756886756708,0.00012674,111380.0,111370.0,0.8974801]
[1756886757036,0.00012674,111380.0,111370.0,0.7503601]
[1756886757255,0.00210674,111380.0,111370.0,0.9010801]
[1756886757476,0.00210674,111380.0,111370.0,0.8959001]
[1756886758038,0.00012674,111380.0,111370.0,0.9010801]
[1756886758803,0.00012674,111380.0,111370.0,0.9050801]
[1756886760452,0.00012674,111380.0,111370.0,0.48222326]
[1756886760694,0.00012674,111380.0,111370.0,0.9050801]
[1756886761265,0.00012674,111380.0,111370.0,0.7543601]
[1756886761472,0.00012674,111380.0,111370.0,0.9050001]
[1756886762732,0.00012674,111380.0,111370.0,0.7543601]
[1756886762911,0.00012674,111380.0,111370.0,0.9050801]
[1756886764012,0.00012674,111380.0,111370.0,0.9050401]
[1756886764477,0.00012674,111380.0,111370.0,0.48218326]
[1756886764681,0.00012674,111380.0,111370.0,0.9050401]
[1756886766688,0.00210674,111380.0,111370.0,0.9050401]
[1756886766891,0.00210674,111380.0,111370.0,0.7543601]